[Event "WSTCC-50 2024"]
[Site "Krakow"]
[Date "2024.07.04"]
[Round "3.13"]
[White "Lalic, Susan K"]
[Black "David, Alberto"]
[Result "1/2-1/2"]
[ECO "B40"]
[WhiteElo "2235"]
[BlackElo "2502"]
[Annotator "TA"]
[PlyCount "90"]
[EventDate "2024.07.01"]
[EventType "team-tourn"]
[EventCountry "POL"]
[SourceTitle "playchess.com"]
[Source "ChessBase"]
[SourceQuality "1"]
[TimeControl "40/5400+30:1800+30"]

{[%evp 12,90,0,0,0,-17,-2,-22,-22,-11,-11,-22,-32,-31,-33,-26,-30,-31,-27,-34,-32,-31,-22,-27,-23,-33,-32,-47,-52,-49,-38,-35,-32,-44,-50,-43,-20,-56,-54,-44,-38,-45,-36,-95,0,-41,-4,-9,0,0,0,0,4,6,4,0,8,0,15,0,0,-8,0,0,-8,0,-14,-167,-172,-163,-136,-246,-236,-378,-316,-326,-8,-8,-8,-343,-285]} 1. e4 {[%emt 0:00:03]} c5 {[%emt 0:00:07]} 2. Nf3 {[%emt 0:00:05]} e6 {[%emt 0:00:05]} 3. c3 {[%emt 0:01:18]} Nf6 {[%emt 0:00:29]} 4. e5 {[%emt 0:00:18]} Nd5 {[%emt 0:00:08]} 5. d4 {[%emt 0:00:11]} cxd4 {[%emt 0:00:08]} 6. cxd4 {[%emt 0:00:06]} d6 {[%emt 0:00:26]} 7. a3 {[%emt 0:00:26]} Bd7 {[%emt 0:01:43]} 8. Nbd2 {[%emt 0:03:19][%cal Bb1d2,Bd2c4,Bc4e5][%mdl 32]} Be7 {[%emt 0:08:47]} 9. Nc4 {[%emt 0:01:57]} dxe5 {[%emt 0:02:59] The position is equal.} 10. Ncxe5 {[%emt 0:08:39]} O-O {[%emt 0:01:17][%cal Od7b5]} 11. Bd3 {[%emt 0:00:35] [#]} Bb5 $1 {[%emt 0:00:57]} 12. O-O {[%emt 0:02:18]} (12. Nxf7 $2 Rxf7 13. Ne5 Rf8 (13... Bxd3 $2 14. Nxf7 Qa5+ 15. Bd2 $19) 14. Bxb5 Qa5+ 15. Bd2 Qxb5 $19) 12... Bxd3 {[%emt 0:00:06]} 13. Qxd3 {[%emt 0:00:03]} Qb6 {[%emt 0:18:27]} 14. Bd2 {[%emt 0:10:03]} Rc8 {[%emt 0:02:52]} 15. Rac1 {[%emt 0:02:23]} Nc6 {[%emt 0:01:19]} 16. Rc2 {[%emt 0:09:46]} Nxe5 {[%emt 0:06:43]} 17. dxe5 {[%emt 0:01:05]} h6 {[%emt 0:02:23]} 18. h4 {[%emt 0:18:26]} Qd8 {[%emt 0:05:03]} 19. h5 {[%emt 0:10:07]} Rxc2 {[%emt 0:02:00]} 20. Qxc2 {[%emt 0:00:05]} Rc8 {[%emt 0:00:12]} 21. Qb3 {[%emt 0:02:17]} Qd7 {[%emt 0:04:55]} 22. Rc1 {[%emt 0:07:51]} Rxc1+ {[%emt 0:06:31]} 23. Bxc1 {[%emt 0:00:05]} Qc6 {[%emt 0:00:54]} 24. Bd2 {[%emt 0:01:30]} Bc5 {[%emt 0:03:20]} 25. a4 {[%emt 0:05:57]} a6 {[%emt 0:13:53]} 26. a5 {[%emt 0:05:41]} Ba7 {[%emt 0:02:03]} 27. Qa3 {[%emt 0:03:06]} (27. Kf1 $15) 27... Bc5 {[%emt 0:10:50]} ({Black should try} 27... Qb5 $17 28. Qa1 Qe2) 28. Qb3 $15 {[%emt 0:01:04]} Ne7 {[%emt 0:03:18]} 29. Qd3 {[%emt 0:01:10] And now b4 would win.} Qd5 {[%emt 0:00:36]} 30. Qxd5 {[%emt 0:00:36]} Nxd5 $11 {[%emt 0:00:02][%mdl 4096] Endgame. KBN-KBN} 31. Kf1 {[%emt 0:00:13]} Ne7 {[%emt 0:01:02]} 32. b4 {[%emt 0:03:39]} Ba7 {[%emt 0:00:04]} 33. Ke2 {[%emt 0:01:06]} Nc6 {[%emt 0:00:05]} 34. Bc3 {[%emt 0:00:45]} Kf8 {[%emt 0:01:31]} 35. g4 {[%emt 0:00:03]} Ke7 {[%emt 0:00:48]} 36. Nd2 {[%emt 0:00:36]} Bd4 {[%emt 0:00:26]} 37. Bxd4 {[%emt 0:00:21]} Nxd4+ {[%emt 0:00:04] KN-KN} 38. Kd3 {[%emt 0:01:04]} Nc6 {[%emt 0:00:05][%csl LRb4,LRe5]} 39. Kc4 $2 {[%emt 0:00:50]} (39. Nc4 $11 {and White has nothing to worry.}) 39... Nxe5+ $19 {[%emt 0:00:05]} 40. Kc5 {[%emt 0:00:02]} Kd7 {[%emt 0:01:49]} ({Worse is} 40... Nxg4 41. Kb6 Nxf2 42. Kxb7 $11) 41. Kb6 {[%emt 0:30:43]} (41. f3 $17) 41... Kc8 {[%emt 0:30:04]} (41... Nxg4 $2 {loses.} 42. Kxb7 Ne5 43. Kxa6 $18) 42. f4 {[%emt 0:00:00]} (42. Ne4 {keeps fighting.} Kb8 (42... Nxg4 43. Nd6+ Kb8 44. Nxb7 $11) 43. Kc5) 42... Nd7+ {[%emt 0:00:00]} 43. Ka7 {[%emt 0:00:00]} f6 $2 {[%emt 0:00:00]} ({Black should play} 43... Kc7 $19 44. Ne4 e5) 44. Ne4 $11 {[%emt 0:00:00]} Kc7 {[%emt 0:00:00] Repels Nd6. aiming for ...Nb8.} 45. g5 $2 {[%emt 0:00:00][%mdl 8192] [#]} (45. Nc3 $1 $11) 45... fxg5 $1 {[%emt 0:00:00][%mdl 32768] Weighted Error Value: White=0.35/Black=0.20 (precise) .  Loses game:     	White=1     	---        Missed win:     	---       	Black=1      Mistake:       	White=4     	Black=1      Inaccurate:     	White=1     	Black=1      OK:         	White=11    	Black=15     Best:        	White=3     	Black=2      Strong:       	---       	Black=1     . An unexpected result.} 1/2-1/2

[Event "WSTCC-50 2024"]
[Site "Krakow"]
[Date "2024.07.04"]
[Round "3.13"]
[White "Kirby, Peter J."]
[Black "Lima, Darcy"]
[Result "0-1"]
[ECO "A05"]
[WhiteElo "1984"]
[BlackElo "2392"]
[Annotator "TA"]
[PlyCount "126"]
[EventDate "2024.07.01"]
[EventType "team-tourn"]
[EventCountry "POL"]
[SourceTitle "playchess.com"]
[Source "ChessBase"]
[SourceQuality "1"]
[TimeControl "40/5400+30:1800+30"]

{[%evp 18,125,34,0,0,0,0,0,0,0,0,0,0,5,0,0,-4,-5,0,0,0,-27,-27,-28,-28,-48,-27,-25,-25,-32,-32,-60,-57,-54,-57,-65,-64,-62,-56,-80,-53,-91,-93,-97,-88,-100,-101,-104,-10,-10,-11,-12,-11,-17,-10,-223,-9,-13,-10,-7,-5,-10,0,0,0,0,0,0,0,0,0,0,59,0,0,0,0,-6,-6,-6,-6,-6,-6,-6,0,-7,-7,-8,-8,-8,-8,-8,0,0,0,0,0,0,0,-29968,-29969,-29969,-29969,-29970,-29970,-29971,-29972,-29971,-29971,-5518]} 1. Nf3 {[%emt 0:00:03]} Nf6 {[%emt 0:00:54]} 2. c4 {[%emt 0:00:06]} g6 {[%emt 0:01:20]} 3. Nc3 {[%emt 0:00:17]} Bg7 {[%emt 0:00:20]} 4. g3 {[%emt 0:00:47]} O-O {[%emt 0:01:01]} 5. Bg2 {[%emt 0:00:35]} c6 {[%emt 0:03:04]} 6. d4 {[%emt 0:03:18]} d5 {[%emt 0:01:44]} 7. cxd5 {[%emt 0:00:16]} cxd5 {[%emt 0:00:06]} 8. Ne5 {[%emt 0:02:59]} e6 {[%emt 0:00:08]} 9. O-O {[%emt 0:03:19]} Nfd7 {[%emt 0:02:28]} 10. Nxd7 {[%emt 0:03:45]} Qxd7 {[%emt 0:01:45]} 11. b3 {[%emt 0:05:01]} Nc6 {[%emt 0:03:55]} 12. e3 {[%emt 0:00:20]} b6 {[%emt 0:00:07] The position is equal.} 13. Ba3 {[%emt 0:02:42]} Rd8 {[%emt 0:01:15]} 14. Qd2 {[%emt 0:06:12]} Ba6 {[%emt 0:00:14]} 15. Rfc1 {[%emt 0:05:49]} Rac8 {[%emt 0:00:13]} 16. Bh3 {[%emt 0:08:35]} h5 {[%emt 0:05:40]} 17. Rc2 {[%emt 0:03:39]} Rc7 {[%emt 0:11:01]} 18. Rac1 {[%emt 0:00:56]} Rdc8 {[%emt 0:00:02]} 19. f4 {[%emt 0:08:06]} Bf6 {[%emt 0:02:48]} 20. Bg2 {[%emt 0:06:42]} Ne7 {[%emt 0:08:09]} 21. Nd1 {[%emt 0:04:03]} Nf5 {[%emt 0:00:44]} 22. Rxc7 {[%emt 0:03:43]} Rxc7 {[%emt 0:00:06]} 23. Rxc7 {[%emt 0:00:03]} Qxc7 {[%emt 0:00:11]} 24. Kf2 {[%emt 0:04:56]} g5 {[%emt 0:01:48]} 25. Bf3 {[%emt 0:02:05]} g4 {[%emt 0:03:55]} 26. Be2 {[%emt 0:01:58]} Bxe2 {[%emt 0:03:28]} 27. Qxe2 {[%emt 0:00:24]} Kg7 {[%emt 0:00:40] Black has more active pieces.} 28. Kg2 {[%emt 0:08:35]} Qc8 {[%emt 0:00:34]} 29. h3 {[%emt 0:01:54]} gxh3+ {[%emt 0:02:47]} 30. Kh2 {[%emt 0:00:20]} Qh8 {[%emt 0:09:27]} 31. g4 {[%emt 0:02:16]} hxg4 {[%emt 0:04:30]} 32. Qxg4+ {[%emt 0:00:08]} Kh7 {[%emt 0:00:04]} (32... Kh6 $17 {...Qc8 is the strong threat.} 33. Kxh3 a6) 33. Qh5+ $11 {[%emt 0:01:13]} Nh6 {[%emt 0:01:54]} 34. Nf2 {[%emt 0:02:39]} Qg8 {[%emt 0:00:15]} 35. Qxh3 {[%emt 0:00:22]} Qg6 {[%emt 0:00:13] ...Qc2 would now be deadly.} 36. Qg2 $2 {[%emt 0:01:22]} (36. Bf8 $1 $11 {and White has nothing to worry.}) 36... Qc2 $2 {[%emt 0:01:15]} (36... Qh5+ $19 37. Qh3 Qe2) 37. Bf8 {[%emt 0:01:47]} Nf5 {[%emt 0:03:48][%cal Of5h4] aiming for ...Nh4!} (37... Qxa2 $2 {too greedy.} 38. Bxh6 Qxb3 39. Ng4 $18) 38. Ng4 {[%emt 0:00:38][%csl LRc2,LRf6]} Qxg2+ {[%emt 0:00:29]} 39. Kxg2 {[%emt 0:00:01][%mdl 4096] Endgame. KBN-KBN} Bh4 {[%emt 0:01:23]} 40. Kf3 {[%emt 0:03:21]} f6 {[%emt 0:00:30]} 41. a4 {[%emt 0:33:05]} a6 {[%emt 0:31:14]} 42. Bb4 {[%emt 0:00:00]} Kg6 {[%emt 0:00:00]} 43. Ba3 {[%emt 0:00:00]} Ng3 {[%emt 0:00:00]} 44. Nf2 {[%emt 0:00:00]} Nf1 {[%emt 0:00:00]} ({Black should try} 44... f5 $11) 45. Bc1 {[%emt 0:00:00]} (45. Nd3 $14) 45... Nh2+ {[%emt 0:00:00]} 46. Kg2 {[%emt 0:00:00]} Bxf2 {[%emt 0:00:00]} 47. Kxh2 {[%emt 0:00:00] KB-KB} Kf5 {[%emt 0:00:00]} 48. Kg2 {[%emt 0:00:00]} Be1 {[%emt 0:00:00] White must now prevent ...Ke4.} 49. Kf3 {[%emt 0:00:00]} Bb4 {[%emt 0:00:00]} 50. Bb2 {[%emt 0:00:00]} b5 {[%emt 0:00:00]} 51. axb5 {[%emt 0:00:00]} axb5 {[%emt 0:00:00]} 52. Bc1 {[%emt 0:00:00]} Bc3 {[%emt 0:00:00] Threatens to win with ...b4.} 53. Ba3 {[%emt 0:00:00]} b4 {[%emt 0:00:00]} 54. Bc1 {[%emt 0:00:00]} Kg6 {[%emt 0:00:00] And now ...Kf5 would win.} 55. Kg4 {[%emt 0:00:00]} f5+ {[%emt 0:00:00]} 56. Kh4 {[%emt 0:00:00]} Be1+ {[%emt 0:00:00]} 57. Kh3 {[%emt 0:00:00]} Kh5 {[%emt 0:00:00]} 58. Bb2 $2 {[%emt 0:00:00][%mdl 8192] [#]} (58. Kh2 $11) 58... Bd2 {[%emt 0:00:00]} 59. Kg3 {[%emt 0:00:00]} Bxe3 {[%emt 0:00:00]} 60. Kf3 {[%emt 0:00:00]} Bd2 {[%emt 0:00:00]} 61. Ba1 {[%emt 0:00:00]} Kh4 {[%emt 0:00:00]} 62. Bb2 {[%emt 0:00:00] [#]} Kh3 $1 {[%emt 0:00:00]} 63. Ba1 {[%emt 0:00:00]} Kh2 {Weighted Error Value: White=0.25 (precise) /Black=0.15 (very precise) .  Loses game:     	White=2     	---        Missed win:     	---       	Black=1      Mistake:       	White=1     	Black=2      Inaccurate:     	White=3     	Black=1      OK:         	White=18    	Black=18     Best:        	White=5     	Black=3} 0-1

[Event "WSTCC-50 2024"]
[Site "Krakow"]
[Date "2024.07.04"]
[Round "3.13"]
[White "McHugh, Kevin"]
[Black "Krause, Ullrich"]
[Result "0-1"]
[ECO "C07"]
[WhiteElo "1938"]
[BlackElo "2171"]
[Annotator "RC"]
[PlyCount "104"]
[EventDate "2024.07.01"]
[EventType "team-tourn"]
[EventCountry "POL"]
[SourceTitle "playchess.com"]
[Source "ChessBase"]
[SourceQuality "1"]
[TimeControl "40/5400+30:1800+30"]

1. e4 {[%emt 0:00:04]} e6 {[%emt 0:00:09]} 2. d4 {[%emt 0:00:05]} d5 {[%emt 0:00:06]} 3. Nd2 {[%emt 0:00:08]} c5 {[%emt 0:00:45]} 4. exd5 {[%emt 0:00:35]} Qxd5 {[%emt 0:00:09]} 5. Ngf3 {[%emt 0:00:39]} cxd4 {[%emt 0:00:11]} 6. Bc4 {[%emt 0:00:49]} Qd7 {[%emt 0:00:20]} 7. Nb3 {[%emt 0:01:38]} Bb4+ {[%emt 0:04:01]} 8. Bd2 {[%emt 0:01:08]} Bxd2+ {[%emt 0:00:41]} 9. Qxd2 {[%emt 0:00:24]} Nc6 {[%emt 0:00:31]} 10. Nbxd4 {[%emt 0:00:38]} Nxd4 {[%emt 0:05:18]} 11. Qxd4 {[%emt 0:01:57]} Qxd4 {[%emt 0:02:58]} 12. Nxd4 {[%emt 0:00:09]} a6 {[%emt 0:00:16]} 13. O-O {[%emt 0:00:42]} Bd7 {[%emt 0:09:02]} 14. Rfe1 {[%emt 0:02:09]} Ne7 {[%emt 0:04:46]} 15. Rad1 {[%emt 0:03:34]} Rc8 {[%emt 0:03:15]} 16. Bd3 {[%emt 0:01:03]} O-O {[%emt 0:06:25]} 17. Nf3 {[%emt 0:02:28]} Rfd8 {[%emt 0:12:41]} 18. c3 {[%emt 0:04:16]} g6 {[%emt 0:09:50]} 19. Ne5 {[%emt 0:02:22]} Ba4 {[%emt 0:01:04]} 20. b3 {[%emt 0:02:59]} Be8 {[%emt 0:00:25]} 21. c4 {[%emt 0:00:55]} Nc6 {[%emt 0:06:03]} 22. Nxc6 {[%emt 0:02:53]} Bxc6 {[%emt 0:00:35]} 23. f3 {[%emt 0:00:36]} Rd4 {[%emt 0:01:42]} 24. Bc2 {[%emt 0:00:40]} Rcd8 {[%emt 0:02:26]} 25. Kf2 {[%emt 0:01:22]} Kg7 {[%emt 0:02:11]} 26. Rxd4 {[%emt 0:01:33]} Rxd4 {[%emt 0:00:58]} 27. Ke3 {[%emt 0:00:33]} e5 {[%emt 0:02:55]} 28. Rd1 {[%emt 0:03:10]} Rxd1 {[%emt 0:05:49]} 29. Bxd1 {[%emt 0:00:11]} f5 {[%emt 0:01:55]} 30. b4 {[%emt 0:01:11]} g5 {[%emt 0:01:45]} 31. a4 {[%emt 0:04:31]} b6 {[%emt 0:01:35]} 32. Bc2 {[%emt 0:06:40]} Kf6 {[%emt 0:02:01]} 33. g4 {[%emt 0:01:04]} f4+ {[%emt 0:01:12]} 34. Ke2 {[%emt 0:02:05]} h6 {[%emt 0:00:48]} 35. Kf2 {[%emt 0:02:49]} Ke7 {[%emt 0:01:36]} 36. b5 {[%emt 0:01:27]} Bb7 {[%emt 0:02:41]} 37. Bd1 {[%emt 0:00:35]} a5 {[%emt 0:01:13]} 38. Ke2 {[%emt 0:00:23]} Kd6 {[%emt 0:04:02]} 39. Kd3 {[%emt 0:01:24]} Kc5 {[%emt 0:00:31]} 40. Be2 {[%emt 0:01:16]} Kb4 {[%emt 0:03:27]} 41. Bd1 {[%emt 0:30:12]} Ba8 {[%emt 0:32:05]} 42. Be2 {[%emt 0:02:56]} Kxa4 {[%emt 0:00:00]} 43. Kc3 {[%emt 0:00:00]} e4 {[%emt 0:00:00]} 44. fxe4 {[%emt 0:00:00]} Bxe4 {[%emt 0:00:00]} 45. c5 {[%emt 0:00:00]} bxc5 {[%emt 0:00:00]} 46. Kc4 {[%emt 0:00:00]} f3 {[%emt 0:00:00]} 47. Bf1 {[%emt 0:00:00]} f2 {[%emt 0:00:00]} 48. Kxc5 {[%emt 0:00:00]} Kb3 {[%emt 0:00:00]} 49. b6 {[%emt 0:00:00]} Kc3 {[%emt 0:00:00]} 50. Kb5 {[%emt 0:00:00]} Kd2 {[%emt 0:00:00]} 51. Kxa5 {[%emt 0:00:00]} Ke1 {[%emt 0:00:00]} 52. Bd3 {[%emt 0:00:00]} Bb7 {[%emt 0:00:00]} 0-1

[Event "WSTCC-50 2024"]
[Site "Krakow"]
[Date "2024.07.04"]
[Round "3.14"]
[White "Godena, Michele"]
[Black "Lauterbach, Ingrid"]
[Result "1-0"]
[ECO "C44"]
[WhiteElo "2426"]
[BlackElo "2023"]
[Annotator "TA"]
[PlyCount "95"]
[EventDate "2024.07.01"]
[EventType "team-tourn"]
[EventCountry "POL"]
[SourceTitle "playchess.com"]
[Source "ChessBase"]
[SourceQuality "1"]
[TimeControl "40/5400+30:1800+30"]

{[%evp 9,95,0,31,41,61,42,39,36,47,43,72,77,81,95,73,75,179,48,46,57,114,119,115,128,119,93,97,46,139,134,130,129,146,124,139,131,147,152,135,100,220,194,228,247,237,231,253,237,232,251,231,231,225,228,234,183,283,185,370,375,357,261,368,289,326,332,366,363,408,379,549,546,704,720,877,877,877,834,833,876,875,853,1220,1189,1260,1307,2922,2529]} 1. e4 {[%emt 0:00:04]} e5 {[%emt 0:00:09]} 2. Nf3 {[%emt 0:00:11]} Nc6 {[%emt 0:00:18]} 3. g3 {[%emt 0:13:39]} g6 {[%emt 0:01:17]} 4. Bg2 {[%emt 0:06:37]} Bg7 {[%emt 0:00:30]} 5. O-O {[%emt 0:00:12]} Nf6 {[%emt 0:01:19]} 6. d4 {[%emt 0:07:20]} Qe7 {[%emt 0:04:06]} 7. Nxe5 {[%emt 0:15:01]} Nxe5 {[%emt 0:01:16]} 8. dxe5 {[%emt 0:00:06] White is slightly better.} Qxe5 {[%emt 0:00:54]} 9. Nc3 {[%emt 0:05:06]} O-O {[%emt 0:02:21]} 10. Bf4 {[%emt 0:05:43]} Qc5 {[%emt 0:00:35]} 11. Re1 $36 {[%emt 0:15:47][%cal Bf1e1,Be1e5,Be5b5][%mdl 2080] Black is under strong pressure.} d6 {[%emt 0:00:52]} 12. e5 {[%emt 0:04:55]} Bg4 {[%emt 0:17:01] [#]} (12... dxe5 $16 {might work better.} 13. Rxe5 Qc4) 13. Qd2 {[%emt 0:03:09]} (13. exf6 $1 $18 Bxd1 14. fxg7 Kxg7 15. Rexd1 (15. Nxd1 Rae8 $16)) 13... dxe5 $14 {[%emt 0:00:51]} 14. Rxe5 {[%emt 0:00:09]} Qd6 {[%emt 0:03:18] [#]} (14... Qc4 $14) 15. Qxd6 $1 $16 {[%emt 0:00:23]} ({Don't do} 15. Bxb7 Qxd2 16. Bxd2 Rab8 $11) 15... cxd6 {[%emt 0:00:05][%cal Bc7d6,Bd6d5,Bd5d4][%mdl 32]} 16. Rb5 {[%emt 0:01:01]} Rfd8 {[%emt 0:01:38]} 17. Bxb7 {[%emt 0:02:56] White is more active.} Rab8 {[%emt 0:00:54]} 18. Ba6 {[%emt 0:09:07]} (18. Bg2 $16) 18... Bf5 {[%emt 0:03:44]} (18... Ne8 $14) 19. Rd1 {[%emt 0:01:23]} Rxb5 {[%emt 0:02:49]} 20. Bxb5 {[%emt 0:00:59]} d5 {[%emt 0:01:10]} 21. Bd3 {[%emt 0:00:49] aiming for Bxf5.} Bg4 {[%emt 0:02:28]} 22. Re1 {[%emt 0:00:55]} d4 {[%emt 0:02:16]} 23. Nb5 {[%emt 0:01:05]} Nd5 {[%emt 0:00:46]} 24. Bg5 {[%emt 0:00:52]} Nf6 {[%emt 0:01:30]} (24... Rb8 $16) 25. f3 {[%emt 0:04:21]} Be6 {[%emt 0:01:05]} 26. Nxa7 {[%emt 0:00:19]} Ra8 {[%emt 0:01:49]} 27. Nc6 {[%emt 0:00:07]} Rxa2 {[%emt 0:00:23]} 28. Nxd4 {[%emt 0:00:05]} Bd5 {[%emt 0:00:10]} 29. b3 {[%emt 0:01:16]} h6 {[%emt 0:01:16]} 30. Be3 {[%emt 0:00:50]} Nd7 {[%emt 0:00:33]} 31. c4 {[%emt 0:00:49]} Ba8 {[%emt 0:00:10]} 32. Be2 {[%emt 0:00:39]} h5 {[%emt 0:03:16]} (32... Rb2 $142 33. Kf2 Bb7) 33. Kf1 {[%emt 0:00:10] Hoping for b4.} Ra3 $2 {[%emt 0:01:40]} (33... Rb2 {was necessary.} 34. Ra1 Bb7) 34. Rd1 $18 {[%emt 0:00:30] And now Nc2 would win.} Ne5 {[%emt 0:00:34]} 35. Bf2 {[%emt 0:00:43] Strongly threatening c5.} Bb7 {[%emt 0:02:43]} (35... Bf8 {was called for.} 36. c5 Kh7) 36. h3 {[%emt 0:00:10][%cal Bh2h3,Bh3g4][%mdl 32]} Ra2 {[%emt 0:00:48]} 37. c5 {[%emt 0:00:41]} Bc8 {[%emt 0:02:32]} 38. g4 {[%emt 0:00:22]} hxg4 {[%emt 0:01:19]} 39. hxg4 {[%emt 0:00:03]} Bb7 {[%emt 0:04:01]} (39... f5 {was worth a try.} 40. gxf5 gxf5) 40. b4 {[%emt 0:00:38][%cal Bb3b4,Bb4b5,Bb5b6][%mdl 32] White is clearly winning.} Bd5 {[%emt 0:03:01]} 41. b5 {[%emt 0:07:14]} Nc4 {[%emt 0:00:42]} 42. Nb3 {[%emt 0:03:00]} Be6 {[%emt 0:02:07]} 43. b6 {[%emt 0:02:05]} Rb2 {[%emt 0:04:22]} 44. Rd8+ {[%emt 0:04:46]} Kh7 {[%emt 0:01:05]} 45. Nd4 {[%emt 0:05:37] Nxe6 is the strong threat.} Nd2+ {[%emt 0:01:45]} 46. Kg2 {[%emt 0:01:48]} Ba2 {[%emt 0:02:33]} 47. c6 {[%emt 0:00:48][%cal Bc5c6,Bc6c7][%mdl 32] Threatens to win with c7.} Bc4 {[%emt 0:01:30]} 48. c7 {[%emt 0:00:33] Weighted Error Value: White=0.19 (very precise) /Black=0.38.  Mistake:       	White=2     	Black=8      Inaccurate:     	White=1     	Black=1      OK:         	White=15    	Black=11     Best:        	White=1     	Black=1      Strong:       	White=1     	---} 1-0

[Event "WSTCC-50 2024"]
[Site "Krakow"]
[Date "2024.07.04"]
[Round "3.14"]
[White "Lampe, Dirk"]
[Black "Fox, Anthony"]
[Result "1-0"]
[ECO "C92"]
[WhiteElo "2158"]
[BlackElo "1909"]
[Annotator "RC"]
[PlyCount "81"]
[EventDate "2024.07.01"]
[EventType "team-tourn"]
[EventCountry "POL"]
[SourceTitle "playchess.com"]
[Source "ChessBase"]
[SourceQuality "1"]
[TimeControl "40/5400+30:1800+30"]

1. e4 {[%emt 0:00:10]} e5 {[%emt 0:00:06]} 2. Nf3 {[%emt 0:00:16]} Nc6 {[%emt 0:00:09]} 3. Bb5 {[%emt 0:00:12]} a6 {[%emt 0:00:09]} 4. Ba4 {[%emt 0:00:27]} Nf6 {[%emt 0:00:17]} 5. O-O {[%emt 0:00:15]} Be7 {[%emt 0:00:05]} 6. Re1 {[%emt 0:00:42]} b5 {[%emt 0:00:10]} 7. Bb3 {[%emt 0:00:09]} d6 {[%emt 0:00:15]} 8. c3 {[%emt 0:00:59]} O-O {[%emt 0:00:11]} 9. h3 {[%emt 0:00:18]} Bb7 {[%emt 0:00:27]} 10. d4 {[%emt 0:01:55]} Re8 {[%emt 0:00:31]} 11. Nbd2 {[%emt 0:01:18]} Bf8 {[%emt 0:00:28]} 12. a4 {[%emt 0:00:34]} h6 {[%emt 0:02:52]} 13. Bc2 {[%emt 0:03:25]} exd4 {[%emt 0:02:48]} 14. cxd4 {[%emt 0:00:38]} Nb4 {[%emt 0:00:16]} 15. Bb1 {[%emt 0:00:13]} c5 {[%emt 0:00:32]} 16. d5 {[%emt 0:00:49]} Nd7 {[%emt 0:01:26]} 17. Ra3 {[%emt 0:01:21]} c4 {[%emt 0:03:14]} 18. Nd4 {[%emt 0:01:05]} Qf6 {[%emt 0:25:24]} 19. N2f3 {[%emt 0:01:07]} Nc5 {[%emt 0:01:35]} 20. b3 {[%emt 0:08:33]} Nbd3 {[%emt 0:03:04]} 21. Bxd3 {[%emt 0:00:56]} Nxd3 {[%emt 0:00:47]} 22. Re3 {[%emt 0:04:32]} Nxc1 {[%emt 0:04:28]} 23. Qxc1 {[%emt 0:01:02]} b4 {[%emt 0:00:14]} 24. Ra2 {[%emt 0:00:28]} cxb3 {[%emt 0:15:49]} 25. Nxb3 {[%emt 0:01:22]} Rac8 {[%emt 0:01:06]} 26. Rc2 {[%emt 0:05:31]} Rxc2 {[%emt 0:00:23]} 27. Qxc2 {[%emt 0:00:06]} Rc8 {[%emt 0:00:22]} 28. Qd2 {[%emt 0:00:50]} Rc3 {[%emt 0:01:59]} 29. Nfd4 {[%emt 0:11:24]} Rxe3 {[%emt 0:04:41]} 30. Qxe3 {[%emt 0:01:02]} Bc8 {[%emt 0:07:52]} 31. Nc6 {[%emt 0:06:15]} Qb2 {[%emt 0:02:59]} 32. Qd3 {[%emt 0:14:06]} f5 {[%emt 0:07:21]} 33. exf5 {[%emt 0:10:01]} Bxf5 {[%emt 0:00:33]} 34. Qxf5 {[%emt 0:00:09]} Qxb3 {[%emt 0:00:52]} 35. Nd8 {[%emt 0:01:56]} Qd1+ {[%emt 0:03:33]} 36. Kh2 {[%emt 0:00:08]} b3 {[%emt 0:00:50]} 37. Qf7+ {[%emt 0:00:26]} Kh7 {[%emt 0:02:07]} 38. Ne6 {[%emt 0:00:35]} Qa1 {[%emt 0:05:05]} 39. Nxf8+ {[%emt 0:00:19]} Kh8 {[%emt 0:00:14]} 40. Ng6+ {[%emt 0:00:10]} Kh7 {[%emt 0:00:18]} 41. Ne7 {[%emt 0:30:30]} 1-0